fUSD/lending_fUSD_20240409
["ID","MTS","AMOUNT","RATE_DAILY","PERIOD"]
[321972817,1712663448299,-1023.03,0.00020821,2]
[321972818,1712663448308,-500.0,0.00020821,2]
[321972819,1712663448318,-717.86,0.00020821,2]
[321972820,1712663448327,-553.91,0.00020821,2]
[321972821,1712663448337,-500.0,0.00020821,2]
[321972822,1712663448346,-975.14,0.00020821,2]
[321972823,1712663448355,-199.09468498,0.00020821,2]
[321972824,1712663448368,-300.90531502,0.00020821,2]
[321972825,1712663448378,-514.07,0.00020821,2]
[321972826,1712663448387,-661.51,0.00020821,2]
[321972827,1712663448397,-1948.27,0.00020821,2]
[321972828,1712663448406,-1429.63,0.00020821,2]
[321972829,1712663448416,-742.69,0.00020821,2]
[321972830,1712663448426,-609.33,0.00020821,2]
[321972831,1712663448434,-500.0,0.00020821,2]
[321972832,1712663448444,-500.0,0.00020821,2]
[321972833,1712663448453,-500.0,0.00020821,2]
[321972834,1712663448462,-500.0,0.00020821,2]
[321972835,1712663448471,-500.0,0.00020821,2]
[321972836,1712663448481,-551.85,0.00020821,2]
[321972837,1712663448490,-500.0,0.00020821,2]
[321972838,1712663448499,-500.0,0.00020821,2]
[321972839,1712663448509,-500.0,0.00020821,2]
[321972840,1712663448518,-5447.84,0.00020821,2]
[321972841,1712663448528,-1206.61,0.00020821,2]
[321972842,1712663448538,-1071.32,0.00020821,2]
[321972843,1712663448548,-500.0,0.00020821,2]
[321972844,1712663448557,-1121.49,0.00020821,2]
[321972845,1712663448567,-676.46,0.00020821,2]
[321972846,1712663448576,-500.0,0.00020821,2]
[321972847,1712663448585,-500.0,0.00020821,2]
[321972848,1712663448594,-500.0,0.00020821,2]
[321972849,1712663448604,-308.14967265,0.00020821,2]
[321972850,1712663448613,-722.95,0.00020821,2]
[321972851,1712663448622,-500.0,0.00020821,2]
[321972852,1712663448631,-500.0,0.00020821,2]
[321972853,1712663448640,-500.0,0.00020821,2]
[321972854,1712663448650,-1889.91,0.00020821,2]
[321972855,1712663448659,-996.94123912,0.00020821,2]
[321972856,1712663448668,-535.08,0.00020821,2]
[321972857,1712663448677,-2421.89,0.00020821,2]
[321972858,1712663448687,-500.0,0.00020821,2]
[321972859,1712663448696,-500.0,0.00020821,2]
[321972860,1712663448705,-3085.02,0.00020821,2]
[321972861,1712663448714,-500.0,0.00020821,2]
[321972862,1712663448723,-500.0,0.00020821,2]
[321972863,1712663448732,-508.64,0.00020821,2]
[321972864,1712663448741,-1618.52,0.00020821,2]
[321972865,1712663448750,-955.6,0.00020821,2]
[321972866,1712663448759,-500.0,0.00020821,2]
[321972867,1712663448768,-500.0,0.00020821,2]
[321972868,1712663448778,-1563.03,0.00020821,2]
[321972869,1712663448787,-1140.34,0.00020821,2]
[321972870,1712663448798,-948.12,0.00020821,2]
[321972871,1712663448807,-657.29,0.00020821,2]
[321972872,1712663448816,-1305.96,0.00020821,2]
[321972873,1712663448824,-500.0,0.00020821,2]
[321972874,1712663448833,-785.74,0.00020821,2]
[321972875,1712663448842,-802.18,0.00020821,2]
[321972876,1712663448851,-2501.11,0.00020821,2]
[321972877,1712663448860,-1608.27,0.00020821,2]
[321972878,1712663448870,-866.71,0.00020821,2]
[321972879,1712663448879,-9431.46,0.00020821,2]
[321972880,1712663448887,-640.83,0.00020821,2]
[321972881,1712663448897,-1148.33,0.00020821,2]
[321972882,1712663448906,-6028.25,0.00020821,2]
[321972883,1712663448915,-500.0,0.00020821,2]
[321972884,1712663448924,-500.0,0.00020821,2]
[321972885,1712663448933,-500.0,0.00020821,2]
[321972886,1712663448942,-500.0,0.00020821,2]
[321972887,1712663448951,-5661.71,0.00020821,2]
[321972888,1712663448960,-500.0,0.00020821,2]
[321972889,1712663448969,-4365.35,0.00020821,2]
[321972890,1712663448978,-500.0,0.00020821,2]
[321972891,1712663448987,-500.0,0.00020821,2]
[321972892,1712663448997,-2727.91,0.00020821,2]
[321972893,1712663449007,-500.0,0.00020821,2]
[321972894,1712663449017,-500.0,0.00020821,2]
[321972895,1712663449026,-4839.32,0.00020821,2]
[321972896,1712663449036,-500.0,0.00020821,2]
[321972897,1712663449047,-12035.19,0.00020821,2]
[321972898,1712663449057,-928.32,0.00020821,2]
[321972899,1712663449067,-1766.74,0.00020821,2]
[321972900,1712663449076,-500.0,0.00020821,2]
[321972901,1712663449086,-500.0,0.00020821,2]
[321972902,1712663449096,-500.0,0.00020821,2]
[321972903,1712663449105,-500.0,0.00020821,2]
[321972904,1712663449114,-500.0,0.00020821,2]
[321972905,1712663449124,-173.32719943,0.00020821,2]
[321972906,1712663449133,-500.0,0.00020821,2]
[321972907,1712663449143,-1741.43,0.00020821,2]
[321972908,1712663449152,-500.0,0.00020821,2]
[321972909,1712663449161,-3001.01,0.00020821,2]
[321972910,1712663449171,-2321.08,0.00020821,2]
[321972911,1712663449180,-500.0,0.00020821,2]
[321972912,1712663449189,-2885.61,0.00020821,2]
[321972913,1712663449199,-300.0,0.00020821,2]
[321972914,1712663449209,-500.0,0.00020821,2]
[321972915,1712663449219,-719.62,0.00020821,2]
[321972916,1712663449230,-1163.34,0.00020821,2]
[321972917,1712663449240,-1080.76,0.00020821,2]
[321972918,1712663449249,-3471.77,0.00020821,2]
[321972919,1712663449259,-500.0,0.00020821,2]
[321972920,1712663449269,-500.0,0.00020821,2]
[321972921,1712663449279,-500.0,0.00020821,2]
[321972922,1712663449288,-693.74,0.00020821,2]
[321972923,1712663449299,-655.54,0.00020821,2]
[321972924,1712663449309,-500.0,0.00020821,2]
[321972925,1712663449319,-17946.76,0.00020821,2]
[321972926,1712663449329,-4491.56,0.00020821,2]
[321972927,1712663449339,-500.0,0.00020821,2]
[321972928,1712663449349,-725.81,0.00020821,2]
[321972929,1712663449359,-20752.33,0.00020821,2]
[321972930,1712663449368,-546.7918194,0.00020821,2]
[321972931,1712663449378,-500.0,0.00020821,2]
[321972932,1712663449387,-500.0,0.00020821,2]
[321972933,1712663449396,-2699.44,0.00020821,2]
[321972934,1712663449405,-1040.52,0.00020821,2]
[321972935,1712663449414,-500.0,0.00020821,2]
[321972936,1712663449424,-6110.6,0.00020821,2]
[321972937,1712663449433,-500.0,0.00020821,2]
[321972938,1712663449442,-1276.86,0.00020821,2]
[321972939,1712663449451,-500.0,0.00020821,2]
[321972940,1712663449460,-6361.4,0.00020821,2]
[321972941,1712663449470,-2514.81,0.00020821,2]
[321972942,1712663449479,-515.66,0.00020821,2]
[321972943,1712663449488,-2006.75,0.00020821,2]
[321972944,1712663449497,-546.08,0.00020821,2]
[321972945,1712663449506,-500.0,0.00020821,2]
[321972946,1712663449515,-500.0,0.00020821,2]
[321972947,1712663449524,-4794.08,0.00020821,2]
[321972948,1712663449533,-1441.34,0.00020821,2]
[321972949,1712663449543,-5829.16,0.00020821,2]
[321972950,1712663449552,-2031.87,0.00020821,2]
[321972951,1712663449562,-662.36,0.00020821,2]
[321972952,1712663449571,-500.0,0.00020821,2]
[321972953,1712663449579,-2292.54,0.00020821,2]
[321972954,1712663449588,-5065.09,0.00020821,2]
[321972955,1712663449598,-1598.26,0.00020821,2]
[321972956,1712663449607,-1550.21,0.00020821,2]
[321972957,1712663449618,-500.0,0.00020821,2]
[321972958,1712663449626,-542.95,0.00020821,2]
[321972959,1712663449635,-500.0,0.00020821,2]
[321972960,1712663449644,-500.0,0.00020821,2]
[321972961,1712663449653,-768.27,0.00020821,2]
[321972962,1712663449662,-1243.32,0.00020821,2]
[321972963,1712663449671,-1680.75,0.00020821,2]
[321972964,1712663449680,-500.0,0.00020821,2]
[321972965,1712663449690,-806.07,0.00020821,2]
[321972966,1712663449699,-574.29,0.00020821,2]
[321972967,1712663449708,-5298.99,0.00020821,2]
[321972968,1712663449717,-500.0,0.00020821,2]
[321972969,1712663449726,-538.38319314,0.00020821,2]
[321972970,1712663449735,-5989.56,0.00020821,2]
[321972971,1712663449744,-500.0,0.00020821,2]
[321972972,1712663449753,-561.07,0.00020821,2]
[321972973,1712663449762,-6505.99,0.00020821,2]
[321972974,1712663449771,-15134.2,0.00020821,2]
[321972975,1712663449780,-633.55,0.00020821,2]
[321972976,1712663449789,-500.0,0.00020821,2]
[321972977,1712663449799,-500.0,0.00020821,2]
[321972978,1712663449808,-2460.37,0.00020821,2]
[321972979,1712663449816,-953.02,0.00020821,2]
[321972980,1712663449825,-500.0,0.00020821,2]
[321972981,1712663449835,-500.0,0.00020821,2]
[321972982,1712663449844,-1676.04,0.00020821,2]
[321972983,1712663449853,-500.0,0.00020821,2]
[321972984,1712663449862,-2612.83,0.00020821,2]
[321972985,1712663449871,-1839.5,0.00020821,2]
[321972986,1712663449880,-500.0,0.00020821,2]
[321972987,1712663449889,-10425.4,0.00020821,2]
[321972988,1712663449898,-500.0,0.00020821,2]
[321972989,1712663449907,-2202.61,0.00020821,2]
[321972990,1712663449916,-500.0,0.00020821,2]
[321972991,1712663449925,-500.0,0.00020821,2]
[321972992,1712663449934,-788.93,0.00020821,2]
[321972993,1712663449943,-18554.52,0.00020821,2]
[321972994,1712663449958,-500.0,0.00020821,2]
[321972995,1712663449967,-500.0,0.00020821,2]
[321972996,1712663449976,-3379.13,0.00020821,2]
[321972997,1712663449985,-500.0,0.00020821,2]
[321972998,1712663449995,-1070.3,0.00020821,2]
[321972999,1712663450005,-500.0,0.00020821,2]
[321973000,1712663450015,-512.55,0.00020821,2]
[321973001,1712663450024,-500.0,0.00020821,2]
[321973002,1712663450033,-1206.87,0.00020821,2]
[321973003,1712663450042,-3000.31,0.00020821,2]
[321973004,1712663450051,-3599.11,0.00020821,2]
[321973005,1712663450061,-3480.83,0.00020821,2]
[321973006,1712663450070,-500.0,0.00020821,2]
[321973007,1712663450079,-2977.62,0.00020821,2]
[321973008,1712663450089,-500.0,0.00020821,2]
[321973009,1712663450098,-1505.75,0.00020821,2]
[321973010,1712663450107,-500.0,0.00020821,2]
[321973011,1712663450116,-763.14,0.00020821,2]
[321973012,1712663450125,-500.0,0.00020821,2]
[321973013,1712663450135,-500.0,0.00020821,2]
[321973014,1712663450144,-736.62,0.00020821,2]
[321973015,1712663450153,-18791.28,0.00020821,2]
[321973016,1712663450163,-1048.27,0.00020821,2]
[321973017,1712663450172,-2252.11,0.00020821,2]
[321973018,1712663450181,-500.0,0.00020821,2]
[321973019,1712663450190,-2670.23,0.00020821,2]
[321973020,1712663450200,-3392.78,0.00020821,2]
[321973021,1712663450209,-500.0,0.00020821,2]
[321973022,1712663450218,-3295.09,0.00020821,2]
[321973023,1712663450227,-4473.32,0.00020821,2]
[321973024,1712663450237,-1209.53,0.00020821,2]
[321973025,1712663450246,-500.0,0.00020821,2]
[321973026,1712663450255,-550.92,0.00020821,2]
[321973027,1712663450264,-300.0,0.00020821,2]
[321973028,1712663450273,-1565.78,0.00020821,2]
[321973029,1712663450283,-1107.32,0.00020821,2]
[321973030,1712663450293,-1058.26,0.00020821,2]
[321973031,1712663450303,-500.0,0.00020821,2]
[321973032,1712663450312,-5824.62,0.00020821,2]
[321973033,1712663450321,-3236.41,0.00020821,2]
[321973034,1712663450330,-500.0,0.00020821,2]
[321973035,1712663450340,-3245.38,0.00020821,2]
[321973036,1712663450349,-500.0,0.00020821,2]
[321973037,1712663450359,-1845.62,0.00020821,2]
[321973038,1712663450368,-17416.87,0.00020821,2]
[321973039,1712663450378,-2180.56,0.00020821,2]
[321973040,1712663450387,-500.0,0.00020821,2]
[321973041,1712663450396,-946.37,0.00020821,2]
[321973042,1712663450405,-4499.5,0.00020821,2]
[321973043,1712663450414,-2013.23,0.00020821,2]
[321973044,1712663450424,-591.47211144,0.00020821,2]
[321973045,1712663450434,-500.0,0.00020821,2]
[321973046,1712663450443,-628.85,0.00020821,2]
[321973047,1712663450452,-818.84,0.00020821,2]
[321973048,1712663450461,-500.0,0.00020821,2]
[321973049,1712663450470,-930.22,0.00020821,2]
[321973050,1712663450480,-930.22,0.00020821,2]
[321973051,1712663450489,-616.52,0.00020821,2]
[321973052,1712663450499,-8435.8,0.00020821,2]
[321973053,1712663450508,-930.22,0.00020821,2]
[321973054,1712663450517,-930.22,0.00020821,2]
[321973055,1712663450527,-930.22,0.00020821,2]
[321973056,1712663450536,-500.0,0.00020821,2]
[321973057,1712663450546,-3310.45,0.00020821,2]
[321973058,1712663450556,-2759.71,0.00020821,2]
[321973059,1712663450565,-3635.16,0.00020821,2]
[321973060,1712663450574,-3659.96,0.00020821,2]
[321973061,1712663450583,-449.90862,0.00020821,2]
[321973062,1712663450593,-500.0,0.00020821,2]
[321973063,1712663450602,-1604.89,0.00020821,2]
[321973064,1712663450612,-823.87,0.00020821,2]
[321973065,1712663450623,-1731.55,0.00020821,2]
[321973066,1712663450632,-500.0,0.00020821,2]
[321973067,1712663450642,-649.66,0.00020821,2]
[321973068,1712663450650,-2819.12,0.00020821,2]
[321973069,1712663450660,-221.97430545,0.00020821,2]
[321973070,1712663450701,-278.02569455,0.00020821,2]
[321973071,1712663450710,-500.0,0.00020821,2]
[321973072,1712663450720,-500.0,0.00020821,2]
[321973073,1712663450729,-16323.78773689,0.00020821,2]
[321973074,1712663595467,151.0,0.00026542,120]
[321973075,1712663645007,25000.0,0.00032789,30]
[321973076,1712663931990,25000.0,0.00032772,30]
[321973077,1712663974099,315.37,0.00017733,2]
[321973078,1712664000786,-5000.0,0.00018239,2]
[321973079,1712664007466,-150.0,0.00018238,2]
[321973080,1712664007495,-4850.0,0.00018239,2]
[321973081,1712664133993,25000.0,0.00032772,30]
[321973082,1712664174397,151.0,0.00026642,120]
[321973083,1712664189375,-5000.0,0.00018139,2]
[321973084,1712664383525,161.93162874,0.00018032,2]
[321973085,1712664412046,-600.0,0.00018131,2]
[321973090,1712664473432,-62.32581776,0.00018131,2]
[321973091,1712664473457,-1220.32405879,0.00018132,2]
[321973092,1712664473483,-1058.36793939,0.00018136,2]
[321973093,1712664473509,-658.98218406,0.00018137,2]
[321973094,1712664527316,151.0,0.00026754,120]
[321973106,1712664603121,-291.82638217,0.00018131,2]
[321973107,1712664603142,-219.78426705,0.00018131,2]
[321973108,1712664603162,-214.86790518,0.00018131,2]
[321973109,1712664603182,-89.24710901,0.00018137,2]
[321973110,1712664603203,-150.0,0.00019237,2]
[321973111,1712664603223,-9034.27433659,0.00019238,2]
[321973112,1712664614462,-1319.04566341,0.00019238,2]
[321973113,1712664614483,-220.06,0.00019306,2]
[321973114,1712664614505,-640.0,0.00019348,2]
[321973115,1712664614528,-7820.89433659,0.00019378,2]
[321973116,1712664627841,345.66,0.00017745,2]
[321973117,1712664628471,-10000.0,0.00019378,2]
[321973162,1712664632247,-956.38691435,0.00019378,2]
[321973163,1712664632261,-1648.67536,0.00019378,2]
[321973164,1712664632275,-3474.04338906,0.00019378,2]
[321973165,1712664632285,-174.59,0.00019502,2]
[321973166,1712664632296,-175.9,0.00019544,2]
[321973167,1712664632306,-200.0,0.00019559,2]
[321973168,1712664632317,-2332.15,0.00019609,2]
[321973169,1712664632328,-360.0,0.00019635,2]
[321973170,1712664632338,-166.02,0.00019793,2]
[321973171,1712664632349,-150.99,0.00019825,2]
[321973172,1712664632360,-499.99,0.00019825,2]
[321973173,1712664632371,-200.15,0.00019919,2]
[321973174,1712664632381,-2032.0,0.0002,2]
[321973175,1712664632391,-987.36052584,0.0002,2]
[321973176,1712664632405,-197.63947416,0.0002,2]
[321973177,1712664632415,-305.51482591,0.00020008,2]
[321973178,1712664632432,-40.14517409,0.00020008,2]
[321973179,1712664632443,-166.69,0.00020461,2]
[321973180,1712664632453,-243.16482591,0.0002052,2]
[321973181,1712664632465,-264.83517409,0.0002052,2]
[321973182,1712664632475,-29037.52426438,0.00020547,2]
[321973183,1712664632486,-13224.96760398,0.00020547,2]
[321973184,1712664632499,-2950.49726927,0.00020547,2]
[321973185,1712664632531,-9047.50431202,0.00020547,2]
[321973186,1712664632548,-2363.92840384,0.00020547,2]
[321973187,1712664632558,-6825.95092864,0.00020548,2]
[321973191,1712664637423,-2494.24638099,0.00020548,2]
[321973194,1712664638054,-553.47269037,0.00020548,2]
[321973197,1712664638066,-1553.38708341,0.00020581,2]
[321973200,1712664638076,-322.06522953,0.000206,2]
[321973235,1712664638516,-374.92385,0.0002061,2]
[321973236,1712664638526,-299.65527006,0.00020611,2]
[321973237,1712664638536,-284.47,0.00020669,2]
[321973238,1712664638546,-661.8246014,0.00020679,2]
[321973239,1712664638555,-442.92064879,0.00020679,2]
[321973240,1712664638565,-644.54423816,0.0002068,2]
[321973241,1712664638575,-779.36919387,0.0002068,2]
[321973242,1712664638585,-2110.84,0.0002068,2]
[321973243,1712664638595,-3449.15,0.0002068,2]
[321973244,1712664638606,-1159.13,0.0002068,2]
[321973245,1712664638616,-3766.94,0.0002068,2]
[321973246,1712664638626,-4312.02,0.0002068,2]
[321973247,1712664638636,-3101.56,0.0002068,2]
[321973248,1712664638646,-3483.7,0.0002068,2]
[321973249,1712664638656,-736.42,0.0002068,2]
[321973250,1712664638666,-500.0,0.0002068,2]
[321973251,1712664638675,-555.20719445,0.0002068,2]
[321973252,1712664638772,-2539.71687213,0.0002068,2]
[321973253,1712664638788,-5169.13823403,0.0002068,2]
[321973254,1712664638799,-11625.54769939,0.0002068,2]
[321973255,1712664638809,-500.0,0.0002068,2]
[321973256,1712664638819,-4462.18,0.0002068,2]
[321973257,1712664638829,-9167.94,0.0002068,2]
[321973258,1712664638838,-4766.53,0.0002068,2]
[321973259,1712664638848,-4052.4,0.0002068,2]
[321973260,1712664638857,-834.48,0.0002068,2]
[321973261,1712664638868,-3388.94,0.0002068,2]
[321973262,1712664638878,-2075.53,0.0002068,2]
[321973263,1712664638889,-2413.37,0.0002068,2]
[321973264,1712664638900,-6845.73,0.0002068,2]
[321973265,1712664638910,-3286.85,0.0002068,2]
[321973266,1712664638921,-1551.08,0.0002068,2]
[321973267,1712664638931,-500.0,0.0002068,2]
[321973268,1712664638942,-5530.73,0.0002068,2]
[321973269,1712664638956,-660.74,0.0002068,2]
[321973270,1712664638967,-24301.46867349,0.00020681,2]
[321973271,1712664638977,-24301.46867349,0.00020681,2]
[321973272,1712664638987,-24301.46867349,0.00020681,2]
[321973273,1712664638998,-24301.46867349,0.00020681,2]
[321973274,1712664639007,-24301.46867349,0.00020681,2]
[321973275,1712664639018,-24301.46867349,0.00020681,2]
[321973276,1712664639029,-24301.46867349,0.00020681,2]
[321973277,1712664639039,-24301.46867349,0.00020681,2]
[321973278,1712664639048,-24301.46867349,0.00020681,2]
[321973279,1712664639058,-24301.46767349,0.00020681,2]
[321973280,1712664639069,-11350.3553,0.00020699,2]
[321973281,1712664639080,-1000.0,0.000207,2]
[321973282,1712664639090,-156.9842685,0.000207,2]
[321973283,1712664639100,-152.14607274,0.000207,2]
[321973284,1712664639110,-2502.03147929,0.00020721,2]
[321973285,1712664639121,-16244.4997,0.00020721,2]
[321973286,1712664639130,-542.905,0.00020726,2]
[321973287,1712664639140,-752.086,0.00020726,2]
[321973288,1712664639150,-435.0,0.00020726,2]
[321973289,1712664639159,-1944.0,0.00020726,2]
[321973290,1712664639169,-617.989,0.00020726,2]
[321973291,1712664639179,-1139.0,0.00020726,2]
[321973292,1712664639188,-3037.0,0.00020726,2]
[321973293,1712664639198,-398.0,0.00020726,2]
[321973294,1712664639207,-1469.0,0.00020726,2]
[321973295,1712664639217,-1634.0,0.00020726,2]
[321973296,1712664639226,-2435.0,0.00020726,2]
[321973297,1712664639236,-442.0,0.00020726,2]
[321973298,1712664639246,-354.0,0.00020726,2]
[321973299,1712664639255,-214.0,0.00020726,2]
[321973300,1712664639265,-150.0,0.00020766,2]
[321973301,1712664639274,-1553.38708338,0.00020779,2]
[321973302,1712664639284,-736.42,0.00020797,2]
[321973303,1712664639293,-536.3086375,0.00020798,2]
[321973304,1712664639303,-500.0,0.00020798,2]
[321973305,1712664639313,-500.0,0.00020798,2]
[321973306,1712664639323,-500.0,0.00020798,2]
[321973307,1712664639333,-500.0,0.00020798,2]
[321973308,1712664639343,-500.0,0.00020798,2]
[321973309,1712664639352,-500.0,0.00020798,2]
[321973310,1712664639362,-500.0,0.00020798,2]
[321973311,1712664639374,-582.43,0.00020798,2]
[321973312,1712664639384,-500.0,0.00020798,2]
[321973313,1712664639393,-1370.06,0.00020798,2]
[321973314,1712664639403,-867.08,0.00020798,2]
[321973315,1712664639413,-500.0,0.00020798,2]
[321973316,1712664639424,-500.0,0.00020798,2]
[321973317,1712664639434,-556.57,0.00020798,2]
[321973318,1712664639443,-500.0,0.00020798,2]
[321973319,1712664639453,-756.34,0.00020798,2]
[321973320,1712664639464,-191.57882634,0.00020798,2]
[321973321,1712664639473,-1496.31,0.00020798,2]
[321973322,1712664639482,-500.0,0.00020798,2]
[321973323,1712664639492,-500.0,0.00020798,2]
[321973324,1712664639501,-500.0,0.00020798,2]
[321973325,1712664639511,-633.94,0.00020798,2]
[321973326,1712664639520,-1057.68,0.00020798,2]
[321973327,1712664639529,-605.04919649,0.00020798,2]
[321973328,1712664639538,-626.73,0.00020798,2]
[321973329,1712664639547,-500.0,0.00020798,2]
[321973330,1712664639557,-500.0,0.00020798,2]
[321973331,1712664639567,-500.0,0.00020798,2]
[321973332,1712664639576,-1386.9,0.00020798,2]
[321973333,1712664639586,-972.84,0.00020798,2]
[321973334,1712664639596,-629.9,0.00020798,2]
[321973335,1712664639608,-1322.98,0.00020798,2]
[321973336,1712664639619,-500.0,0.00020798,2]
[321973337,1712664639629,-1111.33,0.00020798,2]
[321973338,1712664639638,-500.0,0.00020798,2]
[321973339,1712664639648,-500.0,0.00020798,2]
[321973340,1712664639658,-839.25,0.00020798,2]
[321973341,1712664639667,-500.0,0.00020798,2]
[321973342,1712664639676,-500.0,0.00020798,2]
[321973343,1712664639685,-500.0,0.00020798,2]
[321973344,1712664639695,-811.74,0.00020798,2]
[321973345,1712664639705,-1720.31,0.00020798,2]
[321973346,1712664639714,-539.54,0.00020798,2]
[321973347,1712664639723,-1640.16,0.00020798,2]
[321973348,1712664639733,-936.48,0.00020798,2]
[321973349,1712664639742,-500.0,0.00020798,2]
[321973350,1712664639751,-500.0,0.00020798,2]
[321973351,1712664639761,-734.26,0.00020798,2]
[321973352,1712664639770,-500.0,0.00020798,2]
[321973353,1712664639779,-1156.48,0.00020798,2]
[321973354,1712664639788,-537.7,0.00020798,2]
[321973355,1712664639797,-500.0,0.00020798,2]
[321973356,1712664639806,-500.0,0.00020798,2]
[321973357,1712664639816,-500.0,0.00020798,2]
[321973358,1712664639825,-500.0,0.00020798,2]
[321973359,1712664639834,-1284.47,0.00020798,2]
[321973360,1712664639844,-1071.12,0.00020798,2]
[321973361,1712664639854,-1539.76,0.00020798,2]
[321973362,1712664639863,-300.0,0.00020798,2]
[321973363,1712664639875,-764.99,0.00020798,2]
[321973364,1712664639884,-929.22,0.00020798,2]
[321973365,1712664639893,-500.0,0.00020798,2]
[321973367,1712664639902,-1161.54,0.00020798,2]
[321973369,1712664639912,-500.0,0.00020798,2]
[321973371,1712664639920,-500.0,0.00020798,2]
[321973373,1712664639929,-1084.54,0.00020798,2]
[321973375,1712664639938,-500.0,0.00020798,2]
[321973377,1712664639948,-500.0,0.00020798,2]
[321973379,1712664639960,-734.0,0.00020798,2]
[321973381,1712664639969,-3293.35,0.00020798,2]
[321973382,1712664639979,-500.0,0.00020798,2]
[321973384,1712664639990,-500.0,0.00020798,2]
[321973385,1712664640000,-1499.3,0.00020798,2]
[321973387,1712664640010,-571.1,0.00020798,2]
[321973389,1712664640019,-500.0,0.00020798,2]
[321973391,1712664640031,-1060.25,0.00020798,2]
[321973393,1712664640040,-500.0,0.00020798,2]
[321973395,1712664640050,-500.0,0.00020798,2]
[321973397,1712664640060,-500.0,0.00020798,2]
[321973399,1712664640070,-1202.03,0.00020798,2]
[321973401,1712664640081,-649.26,0.00020798,2]
[321973403,1712664640091,-532.74417342,0.00020798,2]
[321973405,1712664640100,-500.0,0.00020798,2]
[321973407,1712664640110,-500.0,0.00020798,2]
[321973409,1712664640119,-500.0,0.00020798,2]
[321973410,1712664640129,-500.0,0.00020798,2]
[321973412,1712664640139,-500.0,0.00020798,2]
[321973414,1712664640149,-500.0,0.00020798,2]
[321973417,1712664640160,-549.57,0.00020798,2]
[321973419,1712664640170,-500.0,0.00020798,2]
[321973420,1712664640179,-500.0,0.00020798,2]
[321973422,1712664640188,-1128.44,0.00020798,2]
[321973424,1712664640197,-1719.11,0.00020798,2]
[321973426,1712664640206,-294.93521441,0.00020798,2]
[321973428,1712664640216,-500.0,0.00020798,2]
[321973431,1712664640225,-500.0,0.00020798,2]
[321973433,1712664640235,-500.0,0.00020798,2]
[321973434,1712664640244,-1090.78,0.00020798,2]
[321973436,1712664640255,-540.37,0.00020798,2]
[321973438,1712664640264,-934.51,0.00020798,2]
[321973440,1712664640273,-500.0,0.00020798,2]
[321973442,1712664640283,-500.0,0.00020798,2]
[321973444,1712664640293,-943.57,0.00020798,2]
[321973446,1712664640304,-3041.09,0.00020798,2]
[321973448,1712664640313,-500.0,0.00020798,2]
[321973450,1712664640323,-1867.09,0.00020798,2]
[321973452,1712664640332,-500.0,0.00020798,2]
[321973454,1712664640342,-500.0,0.00020798,2]
[321973456,1712664640351,-500.0,0.00020798,2]
[321973458,1712664640361,-500.0,0.00020798,2]
[321973460,1712664640374,-808.62,0.00020798,2]
[321973462,1712664640384,-500.0,0.00020798,2]
[321973464,1712664640395,-1074.76,0.00020798,2]
[321973466,1712664640405,-599.954441,0.00020798,2]
[321973467,1712664640415,-5220.85,0.00020798,2]